[Event "Titled Tuesday Blitz July 25 Late 2023"]
[White "Principe, Alexander"]
[Black "Mahdavi, Reza"]
[WhiteFideId "3804542"]
[BlackFideId "12595926"]
[WhiteElo "2565"]
[BlackElo "2787"]
[Result "0-1"]
[Round "8"]
[TimeControl "180+2"]
[Date "2023.07.25"]
[WhiteClock "0:00:03"]
[BlackClock "0:00:23"]
[Board "29"]

1. e4 {[%clk 0:02:59]}  c5 {[%clk 0:02:59]} 2. Nf3 {[%clk 0:02:59]}  d6 {[%clk 0:02:59]} 3. d4 {[%clk 0:03:00]}  cxd4 {[%clk 0:03:00]} 4. Nxd4 {[%clk 0:03:01]}  Nf6 {[%clk 0:03:01]} 5. Nc3 {[%clk 0:03:01]}  a6 {[%clk 0:03:02]} 6. Bg5 {[%clk 0:03:01]}  e6 {[%clk 0:03:02]} 7. f4 {[%clk 0:03:02]}  Be7 {[%clk 0:03:02]} 8. Qf3 {[%clk 0:03:02]}  Qc7 {[%clk 0:03:02]} 9. O-O-O {[%clk 0:03:02]}  Nbd7 {[%clk 0:03:03]} 10. Bd3 {[%clk 0:03:02]}  b5 {[%clk 0:02:55]} 11. Rhe1 {[%clk 0:03:01]}  Bb7 {[%clk 0:02:56]} 12. Nd5 {[%clk 0:03:02]}  exd5 {[%clk 0:02:53]} 13. Nf5 {[%clk 0:03:01]}  dxe4 {[%clk 0:02:07]} 14. Bxe4 {[%clk 0:02:59]}  Nxe4 {[%clk 0:02:03]} 15. Rxe4 {[%clk 0:02:40]}  Ne5 {[%clk 0:01:22]} 16. Nxe7 {[%clk 0:00:50]}  Nxf3 {[%clk 0:00:58]} 17. Nd5+ {[%clk 0:00:49]}  Kf8 {[%clk 0:00:58]} 18. Nxc7 {[%clk 0:00:43]}  Nxg5 {[%clk 0:00:52]} 19. Re2 {[%clk 0:00:19]}  Rc8 {[%clk 0:00:50]} 20. Rde1 {[%clk 0:00:20]}  g6 {[%clk 0:00:29]} 21. Ne8 {[%clk 0:00:03]}  Ne4 {[%clk 0:00:23]} 0-1


[Site "https://www.chess.com"]

[Event "Titled Tuesday Blitz July 25 Late 2023"]
[White "Nenezic, Marko"]
[Black "Gulamali, Kazim"]
[WhiteFideId "912123"]
[BlackFideId "2024764"]
[WhiteElo "2777"]
[BlackElo "2536"]
[Result "1-0"]
[Round "8"]
[TimeControl "180+2"]
[Date "2023.07.25"]
[WhiteClock "0:00:28"]
[BlackClock "0:00:00"]
[Board "30"]

1. d4 {[%clk 0:03:00]}  Nf6 {[%clk 0:02:59]} 2. c4 {[%clk 0:03:01]}  e6 {[%clk 0:02:59]} 3. Nc3 {[%clk 0:03:01]}  d5 {[%clk 0:02:57]} 4. Nf3 {[%clk 0:03:01]}  a6 {[%clk 0:02:57]} 5. b3 {[%clk 0:02:59]}  Bb4 {[%clk 0:02:55]} 6. Bd2 {[%clk 0:02:59]}  c5 {[%clk 0:02:51]} 7. e3 {[%clk 0:02:56]}  Nc6 {[%clk 0:02:48]} 8. a3 {[%clk 0:02:56]}  Bxc3 {[%clk 0:02:48]} 9. Bxc3 {[%clk 0:02:56]}  Ne4 {[%clk 0:02:48]} 10. Bb2 {[%clk 0:02:46]}  Qa5+ {[%clk 0:02:46]} 11. Nd2 {[%clk 0:02:46]}  O-O {[%clk 0:02:33]} 12. Bd3 {[%clk 0:02:27]}  f5 {[%clk 0:02:05]} 13. cxd5 {[%clk 0:01:59]}  exd5 {[%clk 0:02:04]} 14. b4 {[%clk 0:01:59]}  cxb4 {[%clk 0:01:57]} 15. axb4 {[%clk 0:02:00]}  Qb6 {[%clk 0:01:44]} 16. b5 {[%clk 0:01:49]}  Nb4 {[%clk 0:01:44]} 17. Be2 {[%clk 0:01:50]}  Bd7 {[%clk 0:01:35]} 18. Qb3 {[%clk 0:01:42]}  a5 {[%clk 0:01:26]} 19. Ba3 {[%clk 0:01:32]}  Nxd2 {[%clk 0:00:52]} 20. Kxd2 {[%clk 0:01:33]}  Bxb5 {[%clk 0:00:52]} 21. Bxb4 {[%clk 0:01:34]}  Bxe2 {[%clk 0:00:38]} 22. Qxd5+ {[%clk 0:01:13]}  Kh8 {[%clk 0:00:38]} 23. Ba3 {[%clk 0:01:13]}  Qa6 {[%clk 0:00:17]} 24. Bxf8 {[%clk 0:00:33]}  Qd3+ {[%clk 0:00:16]} 25. Ke1 {[%clk 0:00:34]}  Bg4 {[%clk 0:00:17]} 26. Qa2 {[%clk 0:00:34]}  Qc3+ {[%clk 0:00:16]} 27. Kf1 {[%clk 0:00:33]}  Rxf8 {[%clk 0:00:09]} 28. h3 {[%clk 0:00:34]}  f4 {[%clk 0:00:05]} 29. Qa3 {[%clk 0:00:28]}  Qc4+ {[%clk 0:00:00]} 30. Kg1 {[%clk 0:00:28]} 1-0


[Site "https://www.chess.com"]

[Event "Titled Tuesday Blitz July 25 Late 2023"]
[White "Grigoriants, Sergey"]
[Black "Pinero Rodriguez, Carlos Jose"]
[WhiteFideId "4130804"]
[BlackFideId "3901726"]
[WhiteElo "2865"]
[BlackElo "2639"]
[Result "1/2-1/2"]
[Round "8"]
[TimeControl "180+2"]
[Date "2023.07.25"]
[WhiteClock "0:00:21"]
[BlackClock "0:00:17"]
[Board "33"]

1. d4 {[%clk 0:02:53]}  Nf6 {[%clk 0:02:59]} 2. c4 {[%clk 0:02:53]}  e6 {[%clk 0:03:00]} 3. Nc3 {[%clk 0:02:53]}  Bb4 {[%clk 0:03:00]} 4. f3 {[%clk 0:02:51]}  d5 {[%clk 0:02:59]} 5. a3 {[%clk 0:02:48]}  Bxc3+ {[%clk 0:02:59]} 6. bxc3 {[%clk 0:02:49]}  O-O {[%clk 0:03:00]} 7. cxd5 {[%clk 0:02:41]}  Nxd5 {[%clk 0:02:55]} 8. c4 {[%clk 0:02:33]}  Nb6 {[%clk 0:02:51]} 9. e4 {[%clk 0:02:33]}  c5 {[%clk 0:02:49]} 10. d5 {[%clk 0:02:28]}  exd5 {[%clk 0:02:48]} 11. cxd5 {[%clk 0:02:28]}  f5 {[%clk 0:02:48]} 12. Bd3 {[%clk 0:02:01]}  fxe4 {[%clk 0:02:47]} 13. fxe4 {[%clk 0:02:00]}  Qf6 {[%clk 0:02:39]} 14. Ra2 {[%clk 0:01:57]}  c4 {[%clk 0:02:35]} 15. Be2 {[%clk 0:01:41]}  Qf2+ {[%clk 0:02:20]} 16. Kd2 {[%clk 0:01:40]}  Qxg2 {[%clk 0:02:18]} 17. Nf3 {[%clk 0:01:31]}  Rxf3 {[%clk 0:02:16]} 18. Rg1 {[%clk 0:01:31]}  Qf2 {[%clk 0:01:39]} 19. Kc2 {[%clk 0:01:31]}  Bd7 {[%clk 0:00:41]} 20. Kb1 {[%clk 0:01:25]}  Ba4 {[%clk 0:00:42]} 21. Bxf3 {[%clk 0:01:16]}  Qxa2+ {[%clk 0:00:33]} 22. Kxa2 {[%clk 0:01:16]}  Bxd1 {[%clk 0:00:33]} 23. Bxd1 {[%clk 0:00:54]}  N8d7 {[%clk 0:00:33]} 24. Bh6 {[%clk 0:00:47]}  g6 {[%clk 0:00:31]} 25. Bg4 {[%clk 0:00:35]}  Nc5 {[%clk 0:00:31]} 26. Be3 {[%clk 0:00:32]}  Nxe4 {[%clk 0:00:25]} 27. Be6+ {[%clk 0:00:32]}  Kf8 {[%clk 0:00:21]} 28. Rf1+ {[%clk 0:00:28]}  Ke7 {[%clk 0:00:21]} 29. Rf7+ {[%clk 0:00:27]}  Kd6 {[%clk 0:00:21]} 30. Bf4+ {[%clk 0:00:26]}  Kc5 {[%clk 0:00:19]} 31. Be3+ {[%clk 0:00:24]}  Kd6 {[%clk 0:00:18]} 32. Bf4+ {[%clk 0:00:20]}  Kc5 {[%clk 0:00:18]} 33. Be3+ {[%clk 0:00:21]}  Kd6 {[%clk 0:00:17]} 1/2-1/2


[Site "https://www.chess.com"]

[Event "Titled Tuesday Blitz July 25 Late 2023"]
[White "Stoyanov, Tsvetan"]
[Black "Tarhan, Adar"]
[WhiteFideId "2917173"]
[BlackFideId "34544712"]
[WhiteElo "2770"]
[BlackElo "2586"]
[Result "0-1"]
[Round "8"]
[TimeControl "180+2"]
[Date "2023.07.25"]
[WhiteClock "0:00:02"]
[BlackClock "0:00:55"]
[Board "37"]

1. c4 {[%clk 0:03:00]}  e5 {[%clk 0:02:58]} 2. Nc3 {[%clk 0:03:01]}  Nf6 {[%clk 0:02:58]} 3. Nf3 {[%clk 0:03:01]}  Nc6 {[%clk 0:02:58]} 4. g3 {[%clk 0:03:02]}  Bb4 {[%clk 0:02:58]} 5. Nd5 {[%clk 0:03:02]}  Bc5 {[%clk 0:02:57]} 6. Bg2 {[%clk 0:03:02]}  d6 {[%clk 0:02:58]} 7. O-O {[%clk 0:03:01]}  Nxd5 {[%clk 0:02:57]} 8. cxd5 {[%clk 0:03:01]}  Ne7 {[%clk 0:02:58]} 9. d4 {[%clk 0:02:55]}  exd4 {[%clk 0:02:55]} 10. Nxd4 {[%clk 0:02:56]}  O-O {[%clk 0:02:55]} 11. Bg5 {[%clk 0:02:53]}  h6 {[%clk 0:02:54]} 12. Be3 {[%clk 0:02:50]}  Re8 {[%clk 0:02:52]} 13. Rc1 {[%clk 0:02:49]}  Bb6 {[%clk 0:02:52]} 14. h3 {[%clk 0:02:46]}  Ng6 {[%clk 0:02:49]} 15. a4 {[%clk 0:02:43]}  Bd7 {[%clk 0:02:47]} 16. Rc3 {[%clk 0:02:30]}  Qf6 {[%clk 0:02:38]} 17. b4 {[%clk 0:02:08]}  a5 {[%clk 0:02:33]} 18. b5 {[%clk 0:02:06]}  Bc5 {[%clk 0:02:18]} 19. Qd3 {[%clk 0:01:46]}  Ne5 {[%clk 0:02:17]} 20. Qc2 {[%clk 0:01:39]}  b6 {[%clk 0:02:08]} 21. Nb3 {[%clk 0:01:33]}  Bf5 {[%clk 0:02:02]} 22. Qc1 {[%clk 0:01:32]}  Nd7 {[%clk 0:01:51]} 23. Nxc5 {[%clk 0:01:27]}  Nxc5 {[%clk 0:01:52]} 24. Rc4 {[%clk 0:01:11]}  Qg6 {[%clk 0:01:43]} 25. Bxc5 {[%clk 0:01:01]}  dxc5 {[%clk 0:01:43]} 26. d6 {[%clk 0:00:56]}  cxd6 {[%clk 0:01:44]} 27. Bxa8 {[%clk 0:00:55]}  Rxa8 {[%clk 0:01:45]} 28. g4 {[%clk 0:00:45]}  Be6 {[%clk 0:01:42]} 29. Rf4 {[%clk 0:00:41]}  d5 {[%clk 0:01:41]} 30. Rd1 {[%clk 0:00:38]}  Re8 {[%clk 0:01:32]} 31. Rd3 {[%clk 0:00:30]}  d4 {[%clk 0:01:26]} 32. Rg3 {[%clk 0:00:27]}  Bd5 {[%clk 0:01:15]} 33. e3 {[%clk 0:00:27]}  d3 {[%clk 0:01:12]} 34. f3 {[%clk 0:00:15]}  c4 {[%clk 0:01:09]} 35. e4 {[%clk 0:00:15]}  Be6 {[%clk 0:01:09]} 36. Rg2 {[%clk 0:00:12]}  Qg5 {[%clk 0:01:07]} 37. Qe3 {[%clk 0:00:09]}  c3 {[%clk 0:01:05]} 38. h4 {[%clk 0:00:09]}  Qc5 {[%clk 0:00:55]} 39. Qxc5 {[%clk 0:00:02]}  bxc5 {[%clk 0:00:55]} 0-1


[Site "https://www.chess.com"]

[Event "Titled Tuesday Blitz July 25 Late 2023"]
[White "Musovic, Armin"]
[Black "Panesar Vedant"]
[WhiteFideId "939935"]
[BlackFideId "35033018"]
[WhiteElo "2551"]
[BlackElo "2707"]
[Result "0-1"]
[Round "8"]
[TimeControl "180+2"]
[Date "2023.07.25"]
[WhiteClock "0:01:02"]
[BlackClock "0:01:55"]
[Board "39"]

1. a3 {[%clk 0:03:00]}  e5 {[%clk 0:02:56]} 2. d4 {[%clk 0:03:00]}  exd4 {[%clk 0:02:56]} 3. Qxd4 {[%clk 0:03:01]}  Nc6 {[%clk 0:02:56]} 4. Qa4 {[%clk 0:03:02]}  d5 {[%clk 0:02:53]} 5. Nf3 {[%clk 0:03:01]}  Nf6 {[%clk 0:02:50]} 6. Bg5 {[%clk 0:02:58]}  h6 {[%clk 0:02:50]} 7. Bh4 {[%clk 0:02:58]}  g5 {[%clk 0:02:50]} 8. Bg3 {[%clk 0:02:59]}  Ne4 {[%clk 0:02:50]} 9. Nbd2 {[%clk 0:02:51]}  Nc5 {[%clk 0:02:37]} 10. Qb5 {[%clk 0:02:42]}  a6 {[%clk 0:02:35]} 11. Qxc6+ {[%clk 0:02:37]}  bxc6 {[%clk 0:02:33]} 12. O-O-O {[%clk 0:02:38]}  Bg7 {[%clk 0:02:32]} 13. e4 {[%clk 0:02:38]}  Rb8 {[%clk 0:02:31]} 14. Nc4 {[%clk 0:02:34]}  Nxe4 {[%clk 0:02:27]} 15. c3 {[%clk 0:02:27]}  O-O {[%clk 0:02:24]} 16. Nce5 {[%clk 0:02:26]}  Bb7 {[%clk 0:02:18]} 17. Bd3 {[%clk 0:02:25]}  Nxg3 {[%clk 0:02:13]} 18. hxg3 {[%clk 0:02:26]}  Re8 {[%clk 0:02:13]} 19. Ng4 {[%clk 0:02:25]}  Qd6 {[%clk 0:02:12]} 20. Rh5 {[%clk 0:02:17]}  Bc8 {[%clk 0:02:10]} 21. Nxh6+ {[%clk 0:02:14]}  Bxh6 {[%clk 0:02:09]} 22. Rdh1 {[%clk 0:02:15]}  Kg7 {[%clk 0:02:05]} 23. Nxg5 {[%clk 0:01:02]}  Bg4 {[%clk 0:01:55]} 0-1


[Site "https://www.chess.com"]

[Event "Titled Tuesday Blitz July 25 Late 2023"]
[White "Ibarra Jerez, Jose Carlos"]
[Black "SergioMoralesG"]
[WhiteFideId "2226332"]
[WhiteElo "2882"]
[BlackElo "2458"]
[Result "1-0"]
[Round "8"]
[TimeControl "180+2"]
[Date "2023.07.25"]
[WhiteClock "0:00:32"]
[BlackClock "0:00:00"]
[Board "44"]

1. e4 {[%clk 0:03:00]}  c5 {[%clk 0:02:59]} 2. Nf3 {[%clk 0:03:01]}  e6 {[%clk 0:02:59]} 3. d4 {[%clk 0:03:01]}  cxd4 {[%clk 0:03:00]} 4. Nxd4 {[%clk 0:03:01]}  Nc6 {[%clk 0:03:00]} 5. Nc3 {[%clk 0:03:01]}  Qc7 {[%clk 0:03:01]} 6. g4 {[%clk 0:03:00]}  a6 {[%clk 0:02:57]} 7. Be3 {[%clk 0:02:56]}  b5 {[%clk 0:02:55]} 8. Nxc6 {[%clk 0:02:56]}  Qxc6 {[%clk 0:02:53]} 9. Qd2 {[%clk 0:02:53]}  h6 {[%clk 0:02:51]} 10. O-O-O {[%clk 0:02:48]}  Nf6 {[%clk 0:02:47]} 11. f3 {[%clk 0:02:47]}  b4 {[%clk 0:02:42]} 12. Ne2 {[%clk 0:02:46]}  d5 {[%clk 0:02:41]} 13. e5 {[%clk 0:02:43]}  Nd7 {[%clk 0:02:38]} 14. Nd4 {[%clk 0:02:44]}  Qa4 {[%clk 0:02:24]} 15. Kb1 {[%clk 0:02:40]}  Nxe5 {[%clk 0:02:22]} 16. f4 {[%clk 0:02:23]}  Nxg4 {[%clk 0:02:14]} 17. Rg1 {[%clk 0:02:12]}  Nf6 {[%clk 0:02:05]} 18. Nf3 {[%clk 0:01:55]}  Bb7 {[%clk 0:01:51]} 19. Ne5 {[%clk 0:01:50]}  Rc8 {[%clk 0:01:29]} 20. Bd3 {[%clk 0:01:48]}  Qa5 {[%clk 0:00:42]} 21. f5 {[%clk 0:01:26]}  Qc7 {[%clk 0:00:32]} 22. Bd4 {[%clk 0:01:23]}  Bd6 {[%clk 0:00:29]} 23. Qf4 {[%clk 0:01:04]}  Ne4 {[%clk 0:00:23]} 24. Rxg7 {[%clk 0:00:59]}  Rf8 {[%clk 0:00:12]} 25. fxe6 {[%clk 0:00:41]}  fxe6 {[%clk 0:00:00]} 26. Qg4 {[%clk 0:00:32]} 1-0


[Site "https://www.chess.com"]

[Event "Titled Tuesday Blitz July 25 Late 2023"]
[White "Rottenwohrer Suarez, Juan"]
[Black "Oro, Faustino"]
[WhiteFideId "32068182"]
[BlackFideId "20000197"]
[WhiteElo "2528"]
[BlackElo "2778"]
[Result "0-1"]
[Round "8"]
[TimeControl "180+2"]
[Date "2023.07.25"]
[WhiteClock "0:00:00"]
[BlackClock "0:00:10"]
[Board "45"]

1. e4 {[%clk 0:02:59]}  e5 {[%clk 0:02:59]} 2. Nf3 {[%clk 0:02:58]}  Nc6 {[%clk 0:02:59]} 3. Bc4 {[%clk 0:02:53]}  Bc5 {[%clk 0:02:58]} 4. d3 {[%clk 0:02:44]}  Nf6 {[%clk 0:02:56]} 5. Be3 {[%clk 0:02:43]}  Bb6 {[%clk 0:02:56]} 6. O-O {[%clk 0:02:42]}  h6 {[%clk 0:02:56]} 7. c3 {[%clk 0:02:37]}  d6 {[%clk 0:02:53]} 8. a4 {[%clk 0:02:34]}  O-O {[%clk 0:02:51]} 9. Nbd2 {[%clk 0:02:32]}  d5 {[%clk 0:02:44]} 10. exd5 {[%clk 0:02:24]}  Nxd5 {[%clk 0:02:43]} 11. Bxb6 {[%clk 0:02:21]}  axb6 {[%clk 0:02:33]} 12. Re1 {[%clk 0:01:45]}  Bg4 {[%clk 0:01:59]} 13. h3 {[%clk 0:01:42]}  Bh5 {[%clk 0:01:59]} 14. Ne4 {[%clk 0:01:31]}  Re8 {[%clk 0:01:47]} 15. Ng3 {[%clk 0:01:27]}  Bg6 {[%clk 0:01:47]} 16. Bb5 {[%clk 0:01:08]}  Qd6 {[%clk 0:01:39]} 17. Ne4 {[%clk 0:01:03]}  Qe6 {[%clk 0:01:20]} 18. d4 {[%clk 0:00:50]}  f5 {[%clk 0:00:44]} 19. Ng3 {[%clk 0:00:35]}  e4 {[%clk 0:00:43]} 20. Ne5 {[%clk 0:00:19]}  Rad8 {[%clk 0:00:30]} 21. Nxg6 {[%clk 0:00:13]}  Qxg6 {[%clk 0:00:30]} 22. Qh5 {[%clk 0:00:14]}  Qxh5 {[%clk 0:00:28]} 23. Nxh5 {[%clk 0:00:15]}  Rf8 {[%clk 0:00:18]} 24. Bc4 {[%clk 0:00:14]}  Ne7 {[%clk 0:00:16]} 25. Nf4 {[%clk 0:00:13]}  Kf7 {[%clk 0:00:11]} 26. Nxd5 {[%clk 0:00:09]}  Nxd5 {[%clk 0:00:11]} 27. a5 {[%clk 0:00:06]}  Kg6 {[%clk 0:00:06]} 28. Bxd5 {[%clk 0:00:04]}  Rxd5 {[%clk 0:00:07]} 29. axb6 {[%clk 0:00:05]}  cxb6 {[%clk 0:00:08]} 30. Ra7 {[%clk 0:00:04]}  Rf7 {[%clk 0:00:08]} 31. Rea1 {[%clk 0:00:04]}  Rb5 {[%clk 0:00:07]} 32. R1a2 {[%clk 0:00:03]}  f4 {[%clk 0:00:06]} 33. Kf1 {[%clk 0:00:02]}  Kf5 {[%clk 0:00:03]} 34. Ke2 {[%clk 0:00:03]}  g5 {[%clk 0:00:04]} 35. R7a3 {[%clk 0:00:02]}  Rc7 {[%clk 0:00:03]} 36. Ra4 {[%clk 0:00:02]}  Rb3 {[%clk 0:00:02]} 37. Ra8 {[%clk 0:00:02]}  Kg6 {[%clk 0:00:02]} 38. Rg8+ {[%clk 0:00:02]}  Kf5 {[%clk 0:00:02]} 39. Rd8 {[%clk 0:00:03]}  Kg6 {[%clk 0:00:03]} 40. Rg8+ {[%clk 0:00:03]}  Kf7 {[%clk 0:00:03]} 41. Rd8 {[%clk 0:00:04]}  Re7 {[%clk 0:00:03]} 42. Rh8 {[%clk 0:00:03]}  e3 {[%clk 0:00:03]} 43. Rxh6 {[%clk 0:00:02]}  exf2+ {[%clk 0:00:03]} 44. Kxf2 {[%clk 0:00:03]}  Re3 {[%clk 0:00:02]} 45. Rh7+ {[%clk 0:00:03]}  Kf6 {[%clk 0:00:02]} 46. Rxb7 {[%clk 0:00:04]}  Rd3 {[%clk 0:00:03]} 47. Ke2 {[%clk 0:00:04]}  Rg3 {[%clk 0:00:03]} 48. Kf2 {[%clk 0:00:04]}  Rd3 {[%clk 0:00:04]} 49. Ke2 {[%clk 0:00:02]}  Re3+ {[%clk 0:00:05]} 50. Kf2 {[%clk 0:00:02]}  Kf5 {[%clk 0:00:05]} 51. Rb8 {[%clk 0:00:02]}  Rd3 {[%clk 0:00:05]} 52. Rf8+ {[%clk 0:00:02]}  Ke4 {[%clk 0:00:04]} 53. Re8+ {[%clk 0:00:02]}  Kd5 {[%clk 0:00:04]} 54. Rd8+ {[%clk 0:00:03]}  Kc6 {[%clk 0:00:05]} 55. Rf8 {[%clk 0:00:02]}  Rd2+ {[%clk 0:00:05]} 56. Kf3 {[%clk 0:00:02]}  Rdxb2 {[%clk 0:00:05]} 57. Rxb2 {[%clk 0:00:03]}  Rxb2 {[%clk 0:00:05]} 58. Rf6+ {[%clk 0:00:03]}  Kd5 {[%clk 0:00:05]} 59. Rf5+ {[%clk 0:00:03]}  Kc4 {[%clk 0:00:06]} 60. Rxg5 {[%clk 0:00:04]}  Kxc3 {[%clk 0:00:07]} 61. Kxf4 {[%clk 0:00:04]}  Kxd4 {[%clk 0:00:08]} 62. h4 {[%clk 0:00:04]}  b5 {[%clk 0:00:08]} 63. g4 {[%clk 0:00:04]}  b4 {[%clk 0:00:09]} 64. Rg8 {[%clk 0:00:04]}  b3 {[%clk 0:00:09]} 65. Rd8+ {[%clk 0:00:04]}  Kc5 {[%clk 0:00:10]} 66. Rc8+ {[%clk 0:00:04]}  Kb6 {[%clk 0:00:10]} 67. Rb8+ {[%clk 0:00:05]}  Kc7 {[%clk 0:00:10]} 68. Rb4 {[%clk 0:00:04]}  Rb1 {[%clk 0:00:10]} 69. g5 {[%clk 0:00:05]}  b2 {[%clk 0:00:10]} 70. Kf5 {[%clk 0:00:02]}  Rf1+ {[%clk 0:00:10]} 71. Kg6 {[%clk 0:00:02]}  b1=Q+ {[%clk 0:00:10]} 72. Rxb1 {[%clk 0:00:03]}  Rxb1 {[%clk 0:00:11]} 73. h5 {[%clk 0:00:02]}  Kd7 {[%clk 0:00:11]} 74. Kg7 {[%clk 0:00:02]}  Rb5 {[%clk 0:00:10]} 75. Kg6 {[%clk 0:00:00]}  Ke7 {[%clk 0:00:10]} 0-1


[Site "https://www.chess.com"]

[Event "Titled Tuesday Blitz July 25 Late 2023"]
[White "Pakleza, Zbigniew"]
[Black "Gasparyan, David"]
[WhiteFideId "1119290"]
[BlackFideId "13311980"]
[WhiteElo "2753"]
[BlackElo "2522"]
[Result "1-0"]
[Round "8"]
[TimeControl "180+2"]
[Date "2023.07.25"]
[WhiteClock "0:00:04"]
[BlackClock "0:00:27"]
[Board "47"]

1. d4 {[%clk 0:03:00]}  Nf6 {[%clk 0:02:58]} 2. Nf3 {[%clk 0:03:00]}  d6 {[%clk 0:02:58]} 3. Bf4 {[%clk 0:03:00]}  Nbd7 {[%clk 0:02:57]} 4. e3 {[%clk 0:03:00]}  c5 {[%clk 0:02:58]} 5. c3 {[%clk 0:03:00]}  g6 {[%clk 0:02:55]} 6. h3 {[%clk 0:02:57]}  Bg7 {[%clk 0:02:52]} 7. Nbd2 {[%clk 0:02:55]}  O-O {[%clk 0:02:41]} 8. Be2 {[%clk 0:02:55]}  Rb8 {[%clk 0:02:39]} 9. a4 {[%clk 0:02:55]}  a6 {[%clk 0:02:39]} 10. a5 {[%clk 0:02:51]}  b5 {[%clk 0:02:39]} 11. axb6 {[%clk 0:02:51]}  Qxb6 {[%clk 0:02:40]} 12. Nc4 {[%clk 0:02:49]}  Qa7 {[%clk 0:02:40]} 13. O-O {[%clk 0:02:47]}  Rd8 {[%clk 0:02:35]} 14. Qc2 {[%clk 0:02:33]}  Bb7 {[%clk 0:02:34]} 15. Ra2 {[%clk 0:02:27]}  cxd4 {[%clk 0:02:30]} 16. exd4 {[%clk 0:02:22]}  Rdc8 {[%clk 0:02:23]} 17. Ne3 {[%clk 0:02:05]}  Qb6 {[%clk 0:02:13]} 18. Rfa1 {[%clk 0:02:01]}  Be4 {[%clk 0:02:08]} 19. Qd1 {[%clk 0:01:44]}  Qb7 {[%clk 0:01:57]} 20. Bxa6 {[%clk 0:01:41]}  Qc6 {[%clk 0:01:35]} 21. Bxc8 {[%clk 0:01:41]}  Rxc8 {[%clk 0:01:36]} 22. Nd2 {[%clk 0:01:33]}  Bd3 {[%clk 0:01:36]} 23. Qf3 {[%clk 0:01:28]}  d5 {[%clk 0:01:29]} 24. Ng4 {[%clk 0:01:18]}  Qb5 {[%clk 0:01:22]} 25. Ra8 {[%clk 0:01:11]}  Rxa8 {[%clk 0:01:12]} 26. Rxa8+ {[%clk 0:01:11]}  Nf8 {[%clk 0:01:12]} 27. Nh6+ {[%clk 0:01:07]}  Kh8 {[%clk 0:01:10]} 28. Nxf7+ {[%clk 0:01:07]}  Kg8 {[%clk 0:01:11]} 29. Nh6+ {[%clk 0:00:52]}  Kh8 {[%clk 0:01:12]} 30. Rb8 {[%clk 0:00:43]}  Qa6 {[%clk 0:01:10]} 31. Ng4 {[%clk 0:00:39]}  Be2 {[%clk 0:01:02]} 32. Qe3 {[%clk 0:00:35]}  Qa1+ {[%clk 0:00:54]} 33. Kh2 {[%clk 0:00:29]}  Bxg4 {[%clk 0:00:54]} 34. Qxe7 {[%clk 0:00:27]}  Ng8 {[%clk 0:00:53]} 35. Qd6 {[%clk 0:00:07]}  Ne6 {[%clk 0:00:41]} 36. hxg4 {[%clk 0:00:07]}  Qe1 {[%clk 0:00:38]} 37. Nf3 {[%clk 0:00:05]}  h6 {[%clk 0:00:33]} 38. Nxe1 {[%clk 0:00:05]}  Kh7 {[%clk 0:00:32]} 39. Qxe6 {[%clk 0:00:04]}  g5 {[%clk 0:00:32]} 40. Qf5+ {[%clk 0:00:04]}  Kh8 {[%clk 0:00:32]} 41. Be5 {[%clk 0:00:05]}  h5 {[%clk 0:00:28]} 42. Qf7 {[%clk 0:00:05]}  Bxe5+ {[%clk 0:00:28]} 43. dxe5 {[%clk 0:00:04]}  hxg4 {[%clk 0:00:27]} 44. Rxg8# {[%clk 0:00:04]} 1-0


[Site "https://www.chess.com"]

[Event "Titled Tuesday Blitz July 25 Late 2023"]
[White "Womacka, Mathias"]
[Black "Bolourchifard, Farzad"]
[WhiteFideId "4611390"]
[BlackFideId "12510084"]
[WhiteElo "2519"]
[BlackElo "2743"]
[Result "0-1"]
[Round "8"]
[TimeControl "180+2"]
[Date "2023.07.25"]
[WhiteClock "0:00:25"]
[BlackClock "0:00:32"]
[Board "48"]

1. e4 {[%clk 0:03:00]}  e5 {[%clk 0:02:59]} 2. Nf3 {[%clk 0:03:00]}  Nc6 {[%clk 0:02:59]} 3. Bb5 {[%clk 0:03:00]}  a6 {[%clk 0:02:56]} 4. Bxc6 {[%clk 0:03:00]}  dxc6 {[%clk 0:02:56]} 5. O-O {[%clk 0:03:01]}  f6 {[%clk 0:02:56]} 6. d4 {[%clk 0:03:00]}  exd4 {[%clk 0:02:57]} 7. Nxd4 {[%clk 0:03:01]}  c5 {[%clk 0:02:57]} 8. Ne2 {[%clk 0:03:01]}  Qxd1 {[%clk 0:02:57]} 9. Rxd1 {[%clk 0:03:02]}  Bd7 {[%clk 0:02:58]} 10. Nbc3 {[%clk 0:03:02]}  O-O-O {[%clk 0:02:58]} 11. Be3 {[%clk 0:03:02]}  b6 {[%clk 0:02:52]} 12. a4 {[%clk 0:03:00]}  a5 {[%clk 0:02:52]} 13. Nb5 {[%clk 0:03:00]}  Re8 {[%clk 0:02:44]} 14. Nec3 {[%clk 0:02:21]}  Bxb5 {[%clk 0:02:33]} 15. axb5 {[%clk 0:02:15]}  Bd6 {[%clk 0:02:33]} 16. f3 {[%clk 0:02:07]}  Ne7 {[%clk 0:02:31]} 17. Kf2 {[%clk 0:02:06]}  h5 {[%clk 0:02:29]} 18. h4 {[%clk 0:02:02]}  Be5 {[%clk 0:02:20]} 19. Rd3 {[%clk 0:01:48]}  f5 {[%clk 0:02:16]} 20. Rad1 {[%clk 0:01:44]}  Bxc3 {[%clk 0:02:08]} 21. Rxc3 {[%clk 0:01:42]}  fxe4 {[%clk 0:02:08]} 22. fxe4 {[%clk 0:01:42]}  Ng6 {[%clk 0:02:06]} 23. Bg5 {[%clk 0:01:36]}  Rhf8+ {[%clk 0:01:52]} 24. Rf3 {[%clk 0:01:35]}  Ne5 {[%clk 0:01:41]} 25. Rxf8 {[%clk 0:01:18]}  Rxf8+ {[%clk 0:01:42]} 26. Kg3 {[%clk 0:01:18]}  Nc4 {[%clk 0:01:38]} 27. b3 {[%clk 0:01:11]}  Nd6 {[%clk 0:01:39]} 28. Re1 {[%clk 0:01:05]}  Nxb5 {[%clk 0:01:25]} 29. e5 {[%clk 0:01:05]}  Nd4 {[%clk 0:01:22]} 30. e6 {[%clk 0:01:03]}  Nf5+ {[%clk 0:01:16]} 31. Kh3 {[%clk 0:01:01]}  Re8 {[%clk 0:01:11]} 32. g4 {[%clk 0:01:00]}  hxg4+ {[%clk 0:01:00]} 33. Kxg4 {[%clk 0:01:01]}  Nd4 {[%clk 0:01:00]} 34. e7 {[%clk 0:01:00]}  Nxc2 {[%clk 0:01:01]} 35. Re6 {[%clk 0:00:51]}  Nd4 {[%clk 0:00:57]} 36. Rg6 {[%clk 0:00:51]}  c4 {[%clk 0:00:46]} 37. bxc4 {[%clk 0:00:50]}  a4 {[%clk 0:00:47]} 38. Rxg7 {[%clk 0:00:47]}  a3 {[%clk 0:00:40]} 39. Bf6 {[%clk 0:00:47]}  c5 {[%clk 0:00:36]} 40. Bxd4 {[%clk 0:00:40]}  cxd4 {[%clk 0:00:37]} 41. Kf5 {[%clk 0:00:40]}  a2 {[%clk 0:00:36]} 42. Rg1 {[%clk 0:00:40]}  Rxe7 {[%clk 0:00:36]} 43. Ra1 {[%clk 0:00:38]}  Ra7 {[%clk 0:00:30]} 44. h5 {[%clk 0:00:38]}  d3 {[%clk 0:00:30]} 45. h6 {[%clk 0:00:35]}  d2 {[%clk 0:00:30]} 46. Kg6 {[%clk 0:00:31]}  d1=Q {[%clk 0:00:28]} 47. Rxd1 {[%clk 0:00:29]}  a1=Q {[%clk 0:00:28]} 48. Rxa1 {[%clk 0:00:28]}  Rxa1 {[%clk 0:00:29]} 49. h7 {[%clk 0:00:28]}  Rh1 {[%clk 0:00:30]} 50. Kg7 {[%clk 0:00:28]}  Kc7 {[%clk 0:00:30]} 51. h8=Q {[%clk 0:00:27]}  Rxh8 {[%clk 0:00:30]} 52. Kxh8 {[%clk 0:00:28]}  Kc6 {[%clk 0:00:30]} 53. Kg7 {[%clk 0:00:29]}  Kc5 {[%clk 0:00:31]} 54. Kf6 {[%clk 0:00:30]}  Kxc4 {[%clk 0:00:32]} 55. Ke5 {[%clk 0:00:25]}  b5 {[%clk 0:00:32]} 0-1


[Site "https://www.chess.com"]